Body,Body Name,Date,TransNo,Amount � (Excl VAT),Supplier name,Description,Expense Area,Expense Type,Expense Code,
http://opendatacommunities.org/id/london-borough-council/sutton,London Borough of Sutton,16/04/2023,10011720,11.99, AMZNMKTPLACE,FAN FOR CHILDRENS CENTRE,Health and Wellbeing,Furniture - Purchase,A40015,
http://opendatacommunities.org/id/london-borough-council/sutton,London Borough of Sutton,13/04/2023,10011720,100.00, AMAZON.CO.UK GZ8W23OA5,GIFT VOUCHER,Health and Wellbeing,Miscellaneous Expenses,A49000,
http://opendatacommunities.org/id/london-borough-council/sutton,London Borough of Sutton,04/04/2023,10011720,10.28, AMAZON.CO.UK C50SU7O25,TOYS AND EQUIPMENT,Health and Wellbeing,Equipment And Materials Purchase,A40000,
http://opendatacommunities.org/id/london-borough-council/sutton,London Borough of Sutton,25/04/2023,10011720,12.49, AMZNMKTPLACE AMAZON.CO,TOYS AND EQUIPMENT,Health and Wellbeing,Equipment And Materials Purchase,A40000,
http://opendatacommunities.org/id/london-borough-council/sutton,London Borough of Sutton,22/04/2023,10011720,22.68, THE RANGE,TOY AND EQUIPMENT,Health and Wellbeing,Equipment And Materials Purchase,A40000,
http://opendatacommunities.org/id/london-borough-council/sutton,London Borough of Sutton,22/04/2023,10011720,8.32, TWINKL,TWINKL SUBSCRIPTION,Health and Wellbeing,Equipment And Materials Purchase,A40000,
http://opendatacommunities.org/id/london-borough-council/sutton,London Borough of Sutton,21/04/2023,10011720,2.42, EBAY O 07-09971-21585,EQUIPMENT,Health and Wellbeing,Equipment And Materials Purchase,A40000,
http://opendatacommunities.org/id/london-borough-council/sutton,London Borough of Sutton,21/04/2023,10011720,2.50, POUNDLAND LTD,TOYS AND EQUIPMENT,Health and Wellbeing,Equipment And Materials Purchase,A40000,
http://opendatacommunities.org/id/london-borough-council/sutton,London Borough of Sutton,24/04/2023,10011720,14.15, ASDA STORES,GROCERIES,Health and Wellbeing,Provisions,A41006,
http://opendatacommunities.org/id/london-borough-council/sutton,London Borough of Sutton,24/04/2023,10011720,53.68, TESCO STORES 5999,GROCERIES,Health and Wellbeing,Provisions,A41006,
http://opendatacommunities.org/id/london-borough-council/sutton,London Borough of Sutton,03/04/2023,10011720,72.74, TESCO STORES 5999,GROCERIES,Health and Wellbeing,Provisions,A41006,
http://opendatacommunities.org/id/london-borough-council/sutton,London Borough of Sutton,17/04/2023,10011720,71.65, SAINSBURYS.CO.UK,GROCERIES,Health and Wellbeing,Provisions,A41006,
http://opendatacommunities.org/id/london-borough-council/sutton,London Borough of Sutton,11/04/2023,10011720,122.78, TESCO STORES 5999,GROCERIES,Health and Wellbeing,Provisions,A41006,
http://opendatacommunities.org/id/london-borough-council/sutton,London Borough of Sutton,10/04/2023,10011720,7.20, SAINSBURYS S/MKTS,GROCERIES,Health and Wellbeing,Provisions,A41006,
http://opendatacommunities.org/id/london-borough-council/sutton,London Borough of Sutton,29/03/2023,10011720,45.83, THE BOLD TYPE T/A OOSA,OUT OF SCHOOL ALLIANCE SUBSCRIPTION,Health and Wellbeing,Equipment And Materials Purchase,A40000,
http://opendatacommunities.org/id/london-borough-council/sutton,London Borough of Sutton,29/03/2023,10011720,9.36, ASDA STORES,GROCERIES,Health and Wellbeing,Provisions,A41006,
http://opendatacommunities.org/id/london-borough-council/sutton,London Borough of Sutton,06/04/2023,10011720,396.67, B&Q LTD,SHEDS COMMISSION - D13101PURCHASE OF MATERIALS AS PART OF SUTTON STEAMS AHEAD COMMISSION,Health and Wellbeing,Equipment And Materials Purchase,A40000,
http://opendatacommunities.org/id/london-borough-council/sutton,London Borough of Sutton,17/04/2023,10011720,8.82, AMZNMKTPLACE,"SPLIT - 21 LABELS PER A4 SHEET, 50 SHEETS 1050 STICKY LABEL, PRINTABLE STICKER PAPER, ISOUL MATTE SELF ADHESIVE ADDRESS MAILING, SHIPPING, POSTAGE, LASER & INKJET PRINTER COMPATIBLE [QUICKDRY] (100%)",Health and Wellbeing,Equipment And Materials Purchase,A40000,
http://opendatacommunities.org/id/london-borough-council/sutton,London Borough of Sutton,13/04/2023,10011720,255.92, DISPLAYSENSE LTD,D13101MATERIALS FOR SUTTON STEAMS AHEAD PROJECT,Health and Wellbeing,Equipment And Materials Purchase,A40000,
http://opendatacommunities.org/id/london-borough-council/sutton,London Borough of Sutton,13/04/2023,10011720,14.16, WWW.SCREWFIX.COM,D13101 - NLFHSHEDS COMMISSION MATERIALS AS PART OF CULTURAL IMPACT AWARD,Health and Wellbeing,Equipment And Materials Purchase,A40000,
http://opendatacommunities.org/id/london-borough-council/sutton,London Borough of Sutton,13/04/2023,10011720,24.96, AMZNBUSINESS QS82Y8H65,SPLIT - EBUYGB PACK OF 10 NATURAL COTTON SHOPPING TOTE BAGS - SHOPPERS (100%),Health and Wellbeing,Equipment And Materials Purchase,A40000,
http://opendatacommunities.org/id/london-borough-council/sutton,London Borough of Sutton,13/04/2023,10011720,266.50, AMZNMKTPLACE AMAZON.CO,SPLIT - JAKAR ALUMINIUM EASEL AND CARRY BAG (106.64%),Health and Wellbeing,Equipment And Materials Purchase,A40000,
http://opendatacommunities.org/id/london-borough-council/sutton,London Borough of Sutton,13/04/2023,10011720,-19.90, AMZNMKTPLACE AMAZON.CO,BALANCING ENTRY AMOUNT (-19.92%),Health and Wellbeing,Equipment And Materials Purchase,A40000,
http://opendatacommunities.org/id/london-borough-council/sutton,London Borough of Sutton,13/04/2023,10011720,99.97, AMZNMKTPLACE AMAZON.CO,D13101 CYANOTYPE LAMPS FOR NLHF PROJECT (CULTURAL IMPACT AWARD),Health and Wellbeing,Equipment And Materials Purchase,A40000,
http://opendatacommunities.org/id/london-borough-council/sutton,London Borough of Sutton,12/04/2023,10011720,217.50, CYANOTYPE.CO.UK,D13101 MATERIALS PURCHASE FOR SUTTON STEAMS AHEAD PROJECT,Health and Wellbeing,Equipment And Materials Purchase,A40000,
http://opendatacommunities.org/id/london-borough-council/sutton,London Borough of Sutton,11/04/2023,10011720,6.65, AMZNMKTPLACE,"SPLIT - MEETORY 20 PCS MAGNETIC WHITEBOARD MARKERS PENS WITH ERASE, DRY ERASE WIPE CLEAN MARKERS PENS FOR WHITEBOARD, KIDS FINE TIP WHITEBOARD PENS FOR SCHOOL (100%)",Health and Wellbeing,Equipment And Materials Purchase,A40000,
http://opendatacommunities.org/id/london-borough-council/sutton,London Borough of Sutton,11/04/2023,10011720,10.82, AMZNMKTPLACE,SPLIT - PACK OF 12 A4 WHITEBOARDS DRY WIPE BOARDS (100%),Health and Wellbeing,Equipment And Materials Purchase,A40000,
http://opendatacommunities.org/id/london-borough-council/sutton,London Borough of Sutton,20/04/2023,10011720,7.50, AMZNMKTPLACE,"SPLIT - BAKER ROSS EK2352 SELF-ADHESIVE FOAM SHAPES (PACK OF 180) FOR KIDS ARTS AND CRAFTS, VINYL, ASSORTED, 1CM-5CM (66.72%)",Health and Wellbeing,Equipment And Materials Purchase,A40000,
http://opendatacommunities.org/id/london-borough-council/sutton,London Borough of Sutton,20/04/2023,10011720,2.42, AMZNMKTPLACE,SPLIT - ARTBOX ACTIVITY CARD - BLACK - PACK OF 15 A4 SHEETS (45.38%),Health and Wellbeing,Equipment And Materials Purchase,A40000,
http://opendatacommunities.org/id/london-borough-council/sutton,London Borough of Sutton,20/04/2023,10011720,2.91, AMZNMKTPLACE,"SPLIT - ORIGAMI PAPER, COLOURED PAPER A4, 20 PCS CONSTRUCTION PAPER PASTEL COLOURED CARD A4 PACK ASSORTED COLOURED PAPER A4 FOR CRAFT PRINTER PAPER, CARDBOARD (54.62%)",Health and Wellbeing,Equipment And Materials Purchase,A40000,
http://opendatacommunities.org/id/london-borough-council/sutton,London Borough of Sutton,20/04/2023,10011720,3.29, AMZNMKTPLACE,"SPLIT - A4 BRIGHT YELLOW CARD STOCK X 10 SHEETS, 240GSM (297MM X 210MM) - STELLA CRAFTS (100%)",Health and Wellbeing,Equipment And Materials Purchase,A40000,
http://opendatacommunities.org/id/london-borough-council/sutton,London Borough of Sutton,20/04/2023,10011720,19.83, BAKER ROSS,CRAFT MATERIALS FOR CHEAM'S CORONATION STORYTIME (ACE FUNDED),Health and Wellbeing,Equipment And Materials Purchase,A40000,
http://opendatacommunities.org/id/london-borough-council/sutton,London Borough of Sutton,20/04/2023,10011720,5.50, AMZNMKTPLACE,"SPLIT - ITALIAN OPTIONS 250GSM MIRROR CARD CRAFT PAPER 10 SHEETS, A4 SIZE, SILVER (59.46%)",Health and Wellbeing,Equipment And Materials Purchase,A40000,
http://opendatacommunities.org/id/london-borough-council/sutton,London Borough of Sutton,20/04/2023,10011720,3.75, AMZNMKTPLACE,"SPLIT - CRAYOLA MYFIRST JUMBO CRAYONS - ASSORTED COLOURS (PACK OF 24), EASY-GRIP COLOURING CRAYONS PERFECT FOR TODDLERS HANDS, IDEAL FOR KIDS AGED 12+ MONTHS (40.54%)",Health and Wellbeing,Equipment And Materials Purchase,A40000,
http://opendatacommunities.org/id/london-borough-council/sutton,London Borough of Sutton,18/04/2023,10011720,3.29, AMZNMKTPLACE,SPLIT - ABEEC 1.8 LITRE BUBBLE SOLUTION 1 BOTTLE OF GIANT BUBBLE MIXTURE - GIANT BUBBLES - BUBBLE SOLUTION FOR KIDS - GIANT BUBBLES FOR KIDS OUTDOOR - ASSORTED COLOURS (100%),Health and Wellbeing,Equipment And Materials Purchase,A40000,
http://opendatacommunities.org/id/london-borough-council/sutton,London Borough of Sutton,16/04/2023,10011720,19.98, AMZNMKTPLACE,SPLIT - ROYAL KRAFT LEAF AND ASSORTED PATTERN SMALL WOODEN PRINTING BLOCKS (SET OF 10) (66.67%),Health and Wellbeing,Equipment And Materials Purchase,A40000,
http://opendatacommunities.org/id/london-borough-council/sutton,London Borough of Sutton,16/04/2023,10011720,9.99, AMZNMKTPLACE,SPLIT - HENNA WOODEN STAMPS URBAN SMALL ROUND FLORAL PATTERN PRINTING BLOCKS (SET OF 10) (33.33%),Health and Wellbeing,Equipment And Materials Purchase,A40000,
http://opendatacommunities.org/id/london-borough-council/sutton,London Borough of Sutton,21/04/2023,10011720,3.29, AMZNMKTPLACE,"SPLIT - A4 BRIGHT YELLOW CARD STOCK X 10 SHEETS, 240GSM (297MM X 210MM) - STELLA CRAFTS (100%)",Health and Wellbeing,Equipment And Materials Purchase,A40000,
http://opendatacommunities.org/id/london-borough-council/sutton,London Borough of Sutton,20/04/2023,10011720,8.17, AMZNMKTPLACE,SPLIT - SOL 36 COLOURING PENCILS FOR ADULTS AND CHILDREN | COLOURED PENCILS FOR CHILDREN ART & CRAFT SUPPLIES |PENCIL CRAYONS IN 20 ASSORTED PENCIL COLOURS | (73.46%),Health and Wellbeing,Equipment And Materials Purchase,A40000,
http://opendatacommunities.org/id/london-borough-council/sutton,London Borough of Sutton,20/04/2023,10011720,3.29, AMZNMKTPLACE,"SPLIT - A4 BRIGHT YELLOW CARD STOCK X 10 SHEETS, 240GSM (297MM X 210MM) - STELLA CRAFTS (29.61%)",Health and Wellbeing,Equipment And Materials Purchase,A40000,
http://opendatacommunities.org/id/london-borough-council/sutton,London Borough of Sutton,20/04/2023,10011720,-0.34, AMZNMKTPLACE,BALANCING ENTRY AMOUNT (-3.07%),Health and Wellbeing,Equipment And Materials Purchase,A40000,
http://opendatacommunities.org/id/london-borough-council/sutton,London Borough of Sutton,20/04/2023,10011720,9.97, AMZNMKTPLACE,"SPLIT - 30PK COLOURED TISSUE PAPER SHEETS FOR WRAPPING | 66CM X 50CM SOLID COLOUR CREPE PAPER | TISSUE PAPER FOR WRAPPING GIFTS, GIFT BOXES, GIFT BAGS, PACKAG (24.43%)",Health and Wellbeing,Equipment And Materials Purchase,A40000,
http://opendatacommunities.org/id/london-borough-council/sutton,London Borough of Sutton,20/04/2023,10011720,21.83, AMZNMKTPLACE,"SPLIT - Q-CONNECT GLUE STICK, 10 G, PACK OF 25, GREEN (53.48%)",Health and Wellbeing,Equipment And Materials Purchase,A40000,
http://opendatacommunities.org/id/london-borough-council/sutton,London Borough of Sutton,20/04/2023,10011720,9.02, AMZNMKTPLACE,SPLIT - HOUSE OF CARD & PAPER A4 160 GSM CARD - RAINBOW COLOURED CARD (PACK OF 50 SHEETS) (22.09%),Health and Wellbeing,Equipment And Materials Purchase,A40000,
http://opendatacommunities.org/id/london-borough-council/sutton,London Borough of Sutton,20/04/2023,10011720,3.74, AMZNMKTPLACE,SPLIT - HOUSE OF CARD & PAPER A4 80 GSM COLOURED PAPER - BLUE (PACK OF 50 SHEETS) (33.28%),Health and Wellbeing,Equipment And Materials Purchase,A40000,
http://opendatacommunities.org/id/london-borough-council/sutton,London Borough of Sutton,24/04/2023,10011720,9.98, AMZNMKTPLACE,"SPLIT - KUOU 14 SHEETS 1200 PCS STICK ON GEMS, SELF-ADHESIVE RHINESTONE STICKERS, ASSORTED SHAPED CRYSTAL GEM STICKERS, MULTICOLORED GEMSTONES STICKERS FOR KI (100%)",Health and Wellbeing,Equipment And Materials Purchase,A40000,
http://opendatacommunities.org/id/london-borough-council/sutton,London Borough of Sutton,24/04/2023,10011720,16.60, AMZNMKTPLACE,SPLIT - 2 X 50 LOLLIPOP CRAFT STICKS (NATURAL OR COLORED) (COLOURED) (100%),Health and Wellbeing,Equipment And Materials Purchase,A40000,
http://opendatacommunities.org/id/london-borough-council/sutton,London Borough of Sutton,24/04/2023,10011720,10.41, AMZNMKTPLACE,"SPLIT - GLUE, PVA GLUE 6 X 100ML, PVA GLUE FOR CRAFTING, CRAFT GLUE, GLUE FOR CRAFTING KIDS, INCLUDES 6 GLUE SPREADERS, KIDS GLUE. (100%)",Health and Wellbeing,Equipment And Materials Purchase,A40000,
http://opendatacommunities.org/id/london-borough-council/sutton,London Borough of Sutton,16/04/2023,10011720,9.99, AMZNMKTPLACE,SPLIT - HENNA WOODEN STAMPS URBAN SMALL ROUND FLORAL PATTERN PRINTING BLOCKS (SET OF 10) (100%),Health and Wellbeing,Equipment And Materials Purchase,A40000,
http://opendatacommunities.org/id/london-borough-council/sutton,London Borough of Sutton,13/04/2023,10011720,19.98, AMZNMKTPLACE,SPLIT - ROYAL KRAFT INDIAN PAISLEY AND LEAF MOTIF WOOD BLOCK STAMPS (SET OF 6) (50%),Health and Wellbeing,Equipment And Materials Purchase,A40000,
http://opendatacommunities.org/id/london-borough-council/sutton,London Borough of Sutton,13/04/2023,10011720,19.98, AMZNMKTPLACE,SPLIT - MEHNDI PRINT BLOCKS STYLISH BORDER PATTERN WOODEN STAMPS (SET OF 10) (50%),Health and Wellbeing,Equipment And Materials Purchase,A40000,
http://opendatacommunities.org/id/london-borough-council/sutton,London Borough of Sutton,22/04/2023,10011720,6.49, AMZNMKTPLACE,SPLIT - LAKELAND SEMI-SKIMMED MILK POTS (PACK OF 120) (100%),Health and Wellbeing,Equipment And Materials Purchase,A40000,
http://opendatacommunities.org/id/london-borough-council/sutton,London Borough of Sutton,20/04/2023,10011720,9.98, AMZNMKTPLACE,"SPLIT - KUOU 14 SHEETS 1200 PCS STICK ON GEMS, SELF-ADHESIVE RHINESTONE STICKERS, ASSORTED SHAPED CRYSTAL GEM STICKERS, MULTICOLORED GEMSTONES STICKERS FOR KI (100%)",Health and Wellbeing,Equipment And Materials Purchase,A40000,
http://opendatacommunities.org/id/london-borough-council/sutton,London Borough of Sutton,17/04/2023,10011720,-84.95, AMZ SABCO PACKAGING LT,REFUND FOR PAPER BAGS AS NOT ENOUGH TO SUPPLY US WITH,Health and Wellbeing,Other Supplies & Services,A44291,
http://opendatacommunities.org/id/london-borough-council/sutton,London Borough of Sutton,14/04/2023,10011720,169.90, AMZNMKTPLACE,PAPER BAGS FOR PERIOD POVERTY PROJECT,Health and Wellbeing,Other Supplies & Services,A44291,
http://opendatacommunities.org/id/london-borough-council/sutton,London Borough of Sutton,28/03/2023,10011720,37.50, IKEA LTD 144 CROYDON M,TWEEDALE HUB KITCHEN,Health and Wellbeing,Furniture - Purchase,A40015,
http://opendatacommunities.org/id/london-borough-council/sutton,London Borough of Sutton,31/03/2023,10011720,47.16, FACEBK 8EF2DPTAL2,Advertisment,Health and Wellbeing,Fees,A44040,
http://opendatacommunities.org/id/london-borough-council/sutton,London Borough of Sutton,30/03/2023,10011720,40.00, FACEBK U9YT4PXAL2,"POST: ""WE�RE HOLDING MORE FREE ONLINE WORKSHOPS THIS...""",Health and Wellbeing,Fees,A44040,
http://opendatacommunities.org/id/london-borough-council/sutton,London Borough of Sutton,29/03/2023,10011720,40.00, FACEBK 8AWNBNX9L2,"POST: ""WE�RE HOLDING MORE FREE ONLINE WORKSHOPS THIS...""",Health and Wellbeing,Fees,A44040,
http://opendatacommunities.org/id/london-borough-council/sutton,London Borough of Sutton,25/04/2023,10011720,7.37, TESCO STORES 3235,TISSUES/HANDWASH,Health and Wellbeing,Miscellaneous Expenses,A49000,
http://opendatacommunities.org/id/london-borough-council/sutton,London Borough of Sutton,15/04/2023,10011720,6.67, W M MORRISON STORE,CORONATION FLAGS/BALLOONS,Health and Wellbeing,Miscellaneous Expenses,A49000,
http://opendatacommunities.org/id/london-borough-council/sutton,London Borough of Sutton,14/04/2023,10011720,7.50, POUNDLAND LTD 1388,DISHWASHER TABS & CORONATION BUNTING,Health and Wellbeing,Miscellaneous Expenses,A49000,
http://opendatacommunities.org/id/london-borough-council/sutton,London Borough of Sutton,03/04/2023,10011720,8.32, SPOTIFY UK,MUSIC FOR CEREMONIES,Health and Wellbeing,Miscellaneous Expenses,A49000,
http://opendatacommunities.org/id/london-borough-council/sutton,London Borough of Sutton,16/04/2023,10011720,3.99, AMZNMKTPLACE AMAZON.CO,"SPLIT - TYPE C CABLE USB 3.0-3.3FT FAST CHARGING CABLE FOR MOTOROLA MOTO G8 POWER,G8 PLAY,G7 POWER,G7 PLAY,ONE MACRO,G PRO,G7 PLUS,G7 FAST CHARGER CABLE COMPA (100%)",Peoples Services,Miscellaneous Expenses,A49000,
http://opendatacommunities.org/id/london-borough-council/sutton,London Borough of Sutton,03/04/2023,10011720,"2,224.00", KIMPTON CLOCKTOWER,Staff accomodation,Resources,Conference Expenses,A43075,
http://opendatacommunities.org/id/london-borough-council/sutton,London Borough of Sutton,21/04/2023,10011720,276.80, MAILCHIMP,Subscription,Resources,Publicity,A44266,
http://opendatacommunities.org/id/london-borough-council/sutton,London Borough of Sutton,18/04/2023,10011720,20.39, 123 REG LTD 006714416,Subscription,Resources,Publicity,A44266,
http://opendatacommunities.org/id/london-borough-council/sutton,London Borough of Sutton,14/04/2023,10011720,435.11, MAILCHIMP,LBS MAILCHIMP SUBSCRIPTION,Resources,Publicity,A44266,
http://opendatacommunities.org/id/london-borough-council/sutton,London Borough of Sutton,21/04/2023,10011720,20.00, TFL OYSTER AUTO TOPUP,CL&G,Resources,"Grants, Contributions & Donations",A47005,
http://opendatacommunities.org/id/london-borough-council/sutton,London Borough of Sutton,17/04/2023,10011720,1.58, PADDLE.NET GOOGLEADON,CL&G,Resources,"Grants, Contributions & Donations",A47005,
http://opendatacommunities.org/id/london-borough-council/sutton,London Borough of Sutton,15/04/2023,10011720,43.17, PADDLE.NET GOOGLEADON,CL&G,Resources,"Grants, Contributions & Donations",A47005,
http://opendatacommunities.org/id/london-borough-council/sutton,London Borough of Sutton,13/04/2023,10011720,"9,500.00", CS MORRISONS GIFT CARD,CL&G,Resources,"Grants, Contributions & Donations",A47005,
http://opendatacommunities.org/id/london-borough-council/sutton,London Borough of Sutton,13/04/2023,10011720,"11,000.00", CS MORRISONS GIFT CARD,CL&G,Resources,"Grants, Contributions & Donations",A47005,
http://opendatacommunities.org/id/london-borough-council/sutton,London Borough of Sutton,07/04/2023,10011720,20.00, OYSTER BUS AUTOLOAD,CL&G,Resources,"Grants, Contributions & Donations",A47005,
http://opendatacommunities.org/id/london-borough-council/sutton,London Borough of Sutton,03/04/2023,10011720,204.00, CHARTERED INSTITUTE OF,CILEX MEMBERSHIP,Resources,Training - Professional Qualification,A15024,
http://opendatacommunities.org/id/london-borough-council/sutton,London Borough of Sutton,20/04/2023,10011720,204.00, CHARTERED INSTITUTE OF,CILEX MEMBERSHIP,Resources,Training - Professional Qualification,A15024,
http://opendatacommunities.org/id/london-borough-council/sutton,London Borough of Sutton,06/04/2023,10011720,129.00, TRADE SURVEY,LEICA DISTO D2 BT LASER MEASURER,Resources,Equipment Purchase & Hire,A40050,
http://opendatacommunities.org/id/london-borough-council/sutton,London Borough of Sutton,13/04/2023,10011720,107.03, AMZNMKTPLACE,ITEMS REQUIRED FOR THE INNOVATION GATEWAY BUILDING,Resources,Equipment And Materials Repairs & Maintenance,A40051,
http://opendatacommunities.org/id/london-borough-council/sutton,London Borough of Sutton,05/04/2023,10011720,136.13, TRAINLINE.COM,"TRAINLINE TICKETS FOR ""REDACTED - PERSONAL DATA""",Resources,Non-Staff Travel Subsistence & Training,A46006,
http://opendatacommunities.org/id/london-borough-council/sutton,London Borough of Sutton,24/04/2023,10011720,132.67, AMZNMKTPLACE AMAZON.CO,Lanyards for security,Resources,Security Services,A44080,
http://opendatacommunities.org/id/london-borough-council/sutton,London Borough of Sutton,17/04/2023,10011720,7.50, TIMPSON LTD,key cutting service,Resources,Security Services,A44080,
http://opendatacommunities.org/id/london-borough-council/sutton,London Borough of Sutton,05/04/2023,10011720,12.50, TIMPSON LTD,key cutting service,Resources,Security Services,A44080,
http://opendatacommunities.org/id/london-borough-council/sutton,London Borough of Sutton,30/03/2023,10011720,36.45, AMZNMKTPLACE,purchase for security team,Resources,Security Services,A44080,
http://opendatacommunities.org/id/london-borough-council/sutton,London Borough of Sutton,24/04/2023,10011720,226.64, TRAVELODGE,EMERGENCY ACCOMMODATION FOR HOMELESS HOUSEHOLDS,Environment Housing and Neighbourhoods,Bed & Breakfast,A56000,
http://opendatacommunities.org/id/london-borough-council/sutton,London Borough of Sutton,20/04/2023,10011720,524.11, TRAVELODGE,EMERGENCY ACCOMMODATION FOR HOMELESS HOUSEHOLDS,Environment Housing and Neighbourhoods,Bed & Breakfast,A56000,
http://opendatacommunities.org/id/london-borough-council/sutton,London Borough of Sutton,25/04/2023,10011720,77.49, BKG HOTEL AT BOOKING.C,EMERGENCY ACCOMMODATION FOR HOMELESS HOUSEHOLDS,Environment Housing and Neighbourhoods,Bed & Breakfast,A56000,
http://opendatacommunities.org/id/london-borough-council/sutton,London Borough of Sutton,11/04/2023,10011720,339.58, BKG BOOKING.COM HOTEL,EMERGENCY ACCOMMODATION FOR HOMELESS HOUSEHOLD,Environment Housing and Neighbourhoods,Bed & Breakfast,A56000,
http://opendatacommunities.org/id/london-borough-council/sutton,London Borough of Sutton,11/04/2023,10011720,193.31, TRAVELODGE,EMERGENCY ACCOMMODATION FOR HOMELESS HOUSEHOLDS,Environment Housing and Neighbourhoods,Bed & Breakfast,A56000,
http://opendatacommunities.org/id/london-borough-council/sutton,London Borough of Sutton,03/04/2023,10011720,364.87, BKG BOOKING.COM HOTEL,EMERGENCY ACCOMMODATION FOR HOMELESS HOUSEHOLDS,Environment Housing and Neighbourhoods,Bed & Breakfast,A56000,
http://opendatacommunities.org/id/london-borough-council/sutton,London Borough of Sutton,03/04/2023,10011720,485.77, TRAVELODGE,EMERGENCY ACCOMMODATION FOR HOMELESS HOUSEHOLDS,Environment Housing and Neighbourhoods,Bed & Breakfast,A56000,
http://opendatacommunities.org/id/london-borough-council/sutton,London Borough of Sutton,31/03/2023,10011720,139.50, BKG HOTEL AT BOOKING.C,EMERGENCY ACCOMMODATION FOR HOMELESS HOUSEHOLD,Environment Housing and Neighbourhoods,Bed & Breakfast,A56000,
http://opendatacommunities.org/id/london-borough-council/sutton,London Borough of Sutton,31/03/2023,10011720,165.29, BKG HOTEL AT BOOKING.C,EMERGENCY ACCOMMODATION FOR HOMELESS HOUSEHOLDS,Environment Housing and Neighbourhoods,Bed & Breakfast,A56000,
http://opendatacommunities.org/id/london-borough-council/sutton,London Borough of Sutton,31/03/2023,10011720,128.02, BKG HOTEL AT BOOKING.C,EMERGENCY ACCOMMODATION FOR HOMELESS HOUSEHOLDS,Environment Housing and Neighbourhoods,Bed & Breakfast,A56000,
http://opendatacommunities.org/id/london-borough-council/sutton,London Borough of Sutton,29/03/2023,10011720,80.94, PARTNERS ON BOOKING BV,EMERGENCY ACCOMMODATION FOR HOMELESS HOUSEHOLDS,Environment Housing and Neighbourhoods,Bed & Breakfast,A56000,
http://opendatacommunities.org/id/london-borough-council/sutton,London Borough of Sutton,29/03/2023,10011720,317.46, TRAVELODGE,EMERGENCY ACCOMMODATION FOR HOMELESS HOUSEHOLDS,Environment Housing and Neighbourhoods,Bed & Breakfast,A56000,
http://opendatacommunities.org/id/london-borough-council/sutton,London Borough of Sutton,27/03/2023,10011720,41.39, HOTEL AT BOOKING.COM,EMERGENCY ACCOMMODATION FOR HOMELESS HOUSEHOLDS,Environment Housing and Neighbourhoods,Bed & Breakfast,A56000,
http://opendatacommunities.org/id/london-borough-council/sutton,London Borough of Sutton,20/04/2023,10011720,491.61, TRAVELODGE,EMERGENCY ACCOMMODATION FOR HOMELESS HOUSEHOLDS,Environment Housing and Neighbourhoods,Bed & Breakfast,A56000,
http://opendatacommunities.org/id/london-borough-council/sutton,London Borough of Sutton,18/04/2023,10011720,239.97, TRAVELODGE,EMERGENCY ACCOMMODATION FOR HOMELESS HOUSEHOLDS,Environment Housing and Neighbourhoods,Bed & Breakfast,A56000,
http://opendatacommunities.org/id/london-borough-council/sutton,London Borough of Sutton,18/04/2023,10011720,487.44, BKG BOOKING.COM HOTEL,EMERGENCY ACCOMMODATION FOR HOMELESS HOUSEHOLDS,Environment Housing and Neighbourhoods,Bed & Breakfast,A56000,
http://opendatacommunities.org/id/london-borough-council/sutton,London Borough of Sutton,14/04/2023,10011720,444.11, TRAVELODGE,EMERGENCY ACCOMMODATION FOR HOMELESS HOUSEHOLDS,Environment Housing and Neighbourhoods,Bed & Breakfast,A56000,
http://opendatacommunities.org/id/london-borough-council/sutton,London Borough of Sutton,14/04/2023,10011720,684.25, HOTEL AT BOOKING.COM,EMERGENCY ACCOMMODATION FOR HOMELESS HOUSEHOLDS,Environment Housing and Neighbourhoods,Bed & Breakfast,A56000,
http://opendatacommunities.org/id/london-borough-council/sutton,London Borough of Sutton,13/04/2023,10011720,347.60, TRAVELODGE,EMERGENCY ACCOMMODATION FOR HOMELESS HOUSEHOLDS,Environment Housing and Neighbourhoods,Bed & Breakfast,A56000,
http://opendatacommunities.org/id/london-borough-council/sutton,London Borough of Sutton,03/04/2023,10011720,64.04, TEAM SPORT KARTING,YOUNG PERSON ACTIVITY,Peoples Services,Client Care/Assistance,A61011,
http://opendatacommunities.org/id/london-borough-council/sutton,London Borough of Sutton,06/04/2023,10011720,97.70, TEAM SPORT KARTING,GO KARTING ACTIVITY PAYMENT,Peoples Services,Miscellaneous Expenses,A49000,
http://opendatacommunities.org/id/london-borough-council/sutton,London Borough of Sutton,31/03/2023,10011720,14.00, GEN REGISTER OFFICE,BIRTH CERTIFICATE,Peoples Services,Equipment And Materials Purchase,A40000,
http://opendatacommunities.org/id/london-borough-council/sutton,London Borough of Sutton,16/03/2023,10011720,-7.50, GEN REGISTER OFFICE,REFUND,Peoples Services,Equipment And Materials Purchase,A40000,
http://opendatacommunities.org/id/london-borough-council/sutton,London Borough of Sutton,05/04/2023,10011720,9.17, LEEDS CITY COUNCIL,BIRTH CERT REQUESTED BY A SOCIAL WORKER,Peoples Services,Equipment And Materials Purchase,A40000,
http://opendatacommunities.org/id/london-borough-council/sutton,London Borough of Sutton,11/04/2023,10011720,32.50, AMZNMKTPLACE,SPLIT - TIME MATTERS: A PRACTICAL RESOURCE TO DEVELOP TIME CONCEPTS AND SELF-ORGANISATION SKILLS IN OLDER CHILDREN AND YOUNG PEOPLE (100%),Peoples Services,Equipment And Materials Purchase,A40000,
http://opendatacommunities.org/id/london-borough-council/sutton,London Borough of Sutton,11/04/2023,10011720,29.86, AMZNMKTPLACE,"SPLIT - RAM CRICKET CRAZY CRICKET SET - SENIOR - KWIK, QUICK, BEACH, PARK (89.69%)",Peoples Services,Equipment And Materials Purchase,A40000,
http://opendatacommunities.org/id/london-borough-council/sutton,London Borough of Sutton,11/04/2023,10011720,3.43, AMZNMKTPLACE,BALANCING ENTRY AMOUNT (10.31%),Peoples Services,Equipment And Materials Purchase,A40000,
http://opendatacommunities.org/id/london-borough-council/sutton,London Borough of Sutton,10/04/2023,10011720,37.46, AMZNMKTPLACE,"SPLIT - PRO-SPIN PORTABLE TABLE TENNIS SET | 4-PLAYER PREMIUM ALL-IN-ONE KIT WITH RETRACTABLE TABLE TENNIS NET FOR ANY TABLE, BATS, 3-STAR PING PONG BALLS & S (100%)",Peoples Services,Equipment And Materials Purchase,A40000,
http://opendatacommunities.org/id/london-borough-council/sutton,London Borough of Sutton,06/04/2023,10011720,7.35, AMZNBUSINESS AI62137K5,SPLIT - AN EAGLE IN THE SNOW (100%),Peoples Services,Equipment And Materials Purchase,A40000,
http://opendatacommunities.org/id/london-borough-council/sutton,London Borough of Sutton,29/03/2023,10011720,68.20, KENT LIFE,TICKETS,Peoples Services,Miscellaneous Expenses,A49000,
http://opendatacommunities.org/id/london-borough-council/sutton,London Borough of Sutton,12/04/2023,10011720,25.00, GEN REGISTER OFFICE,BIRTH CERTIFICATES,Peoples Services,Miscellaneous Expenses,A49000,
http://opendatacommunities.org/id/london-borough-council/sutton,London Borough of Sutton,13/04/2023,10011720,288.96, HOTEL AT BOOKING.COM,EMERGENCY ACCOMMODATION FOR HOMELESS HOUSEHOLDS,Peoples Services,Bed & Breakfast,A56000,
http://opendatacommunities.org/id/london-borough-council/sutton,London Borough of Sutton,13/04/2023,10011720,364.95, WWW.ARGOS.CO.UK,ARGOS BED PAYMENT,Peoples Services,Client Care/Assistance,A61011,
http://opendatacommunities.org/id/london-borough-council/sutton,London Borough of Sutton,30/03/2023,10011720,22.00, SUTTON REGISTER OFFICE,2 BIRTH CERTIFICATES,Peoples Services,Client Care/Assistance,A61011,
http://opendatacommunities.org/id/london-borough-council/sutton,London Borough of Sutton,05/04/2023,10011720,541.67, TOOTING CARPETS,YOUNG PERSON NEW FLAT FLOORING REQUIRED,Peoples Services,Set Up Costs - Children Leaving Care,A61021,
http://opendatacommunities.org/id/london-borough-council/sutton,London Borough of Sutton,30/03/2023,10011720,70.12, MALDRON HOTEL GLASGOW,HOTEL BOOKING FOR A CONTACT,Peoples Services,Approved Lodgings,A61000,
http://opendatacommunities.org/id/london-borough-council/sutton,London Borough of Sutton,17/04/2023,10011720,17.00, WWW.WIGHTLINK.CO.UK,FERRY TRAVEL FOR A SOCIAL WORKER,Peoples Services,C.C.A Travel & Subsistance,A61010,
http://opendatacommunities.org/id/london-borough-council/sutton,London Borough of Sutton,17/04/2023,10011720,126.35, EASYJET,EASY JET FLIGHT PAYMENT,Peoples Services,C.C.A Travel & Subsistance,A61010,
http://opendatacommunities.org/id/london-borough-council/sutton,London Borough of Sutton,12/04/2023,10011720,52.00, SAINSBURYS SUPERMA,Leaving Care Team,Peoples Services,Miscellaneous Expenses,A49000,
http://opendatacommunities.org/id/london-borough-council/sutton,London Borough of Sutton,30/03/2023,10011720,44.95, WWW.ARGOS.CO.UK,Leaving Care Team,Peoples Services,Set Up Costs - Children Leaving Care,A61021,
http://opendatacommunities.org/id/london-borough-council/sutton,London Borough of Sutton,15/04/2023,10011720,5.42, ASDA GROCERIES ONLINE,WILLOW RISE CHILDRENS HOME FOOD SHOPPING,Peoples Services,Miscellaneous Expenses,A49000,
http://opendatacommunities.org/id/london-borough-council/sutton,London Borough of Sutton,17/04/2023,10011720,10.99, AMZNMKTPLACE AMAZON.CO,DECORATIONS FOR WILLOW RISE CHILDRENS HOME (100%),Peoples Services,Miscellaneous Expenses,A49000,
http://opendatacommunities.org/id/london-borough-council/sutton,London Borough of Sutton,19/04/2023,10011720,100.10, ASDA GROCERIES ONLINE,WILLOW RISE CHILDRENS HOME FOOD SHOPPING,Peoples Services,Miscellaneous Expenses,A49000,
http://opendatacommunities.org/id/london-borough-council/sutton,London Borough of Sutton,19/04/2023,10011720,66.60, TEAM SPORT KARTING,ACTIVITY FOR YOUNG PERSON,Peoples Services,Miscellaneous Expenses,A49000,
http://opendatacommunities.org/id/london-borough-council/sutton,London Borough of Sutton,19/04/2023,10011720,-0.80, ASDA GROCERIES ONLINE,"WILLOW RISE CHILDRENS HOME FOOD SHOPPING, REFUND OF THE ITEMS NOT BEING AVAILABLE",Peoples Services,Miscellaneous Expenses,A49000,
http://opendatacommunities.org/id/london-borough-council/sutton,London Borough of Sutton,30/03/2023,10011720,135.41, ASDA GROCERIES ONLINE,FOOD SHOPPING FOR WILLOW RISE CHILDRENS HOME,Peoples Services,Miscellaneous Expenses,A49000,
http://opendatacommunities.org/id/london-borough-council/sutton,London Borough of Sutton,12/04/2023,10011720,73.27, TEAM SPORT KARTING,ACTIVITY FOR YOUNG PERSON,Peoples Services,Miscellaneous Expenses,A49000,
http://opendatacommunities.org/id/london-borough-council/sutton,London Borough of Sutton,06/04/2023,10011720,99.72, ASDA GROCERIES ONLINE,WILLOW RISE CHILDRENS HOME FOOD SHOPPING,Peoples Services,Miscellaneous Expenses,A49000,
http://opendatacommunities.org/id/london-borough-council/sutton,London Borough of Sutton,06/04/2023,10011720,-0.50, ASDA GROCERIES ONLINE,"WILLOW RISE CHILDRENS HOME FOOD SHOPPING, REFUND OF THE ITEMS NOT BEING AVAILABLE",Peoples Services,Miscellaneous Expenses,A49000,
http://opendatacommunities.org/id/london-borough-council/sutton,London Borough of Sutton,30/03/2023,10011720,-0.33, ASDA GROCERIES ONLINE,ASDA REFUND FOR WILLOW RISE,Peoples Services,Miscellaneous Expenses,A49000,
http://opendatacommunities.org/id/london-borough-council/sutton,London Borough of Sutton,31/03/2023,10011720,14.98, AMZNMKTPLACE,"SPLIT - SKIPPING ROPE, GRITIN SPEED JUMP ROPE SOFT MEMORY FOAM HANDLE TANGLE-FREE ADJUSTABLE ROPE&RAPID BALL BEARINGS FITNESS WORKOUTS FAT BURNING EXERCISES B (100%)",Peoples Services,Miscellaneous Expenses,A49000,
http://opendatacommunities.org/id/london-borough-council/sutton,London Borough of Sutton,31/03/2023,10011720,60.00, WWW.ARGOS.CO.UK,ARGOS PAYMENT,Peoples Services,Miscellaneous Expenses,A49000,
http://opendatacommunities.org/id/london-borough-council/sutton,London Borough of Sutton,31/03/2023,10011720,197.00, WWW.ARGOS.CO.UK,ARGOS PAYMENT,Peoples Services,Miscellaneous Expenses,A49000,
http://opendatacommunities.org/id/london-borough-council/sutton,London Borough of Sutton,31/03/2023,10011720,32.99, AMZNMKTPLACE,COSH EXPENSE FOR WILLOW RISE CHILDRENS HOME (100%),Peoples Services,Miscellaneous Expenses,A49000,
http://opendatacommunities.org/id/london-borough-council/sutton,London Borough of Sutton,21/04/2023,10011720,18.74, HPI INSTANT INK UK,INK FOR WILLOW RISE CHILDREN'S HOME,Peoples Services,Miscellaneous Expenses,A49000,
http://opendatacommunities.org/id/london-borough-council/sutton,London Borough of Sutton,29/03/2023,10011720,59.99, WWW.ARGOS.CO.UK,ARGOS PAYMENT,Peoples Services,Miscellaneous Expenses,A49000,
http://opendatacommunities.org/id/london-borough-council/sutton,London Borough of Sutton,29/03/2023,10011720,251.95, WWW.ARGOS.CO.UK,ARGOS PAYMENT,Peoples Services,Miscellaneous Expenses,A49000,
http://opendatacommunities.org/id/london-borough-council/sutton,London Borough of Sutton,17/04/2023,10011720,15.99, NETFLIX.COM,NETFLIX PAYMENT,Peoples Services,Miscellaneous Expenses,A49000,
http://opendatacommunities.org/id/london-borough-council/sutton,London Borough of Sutton,13/04/2023,10011720,118.95, ASDA GROCERIES ONLINE,ASDA SHOPPING PAYMENT,Peoples Services,Miscellaneous Expenses,A49000,
http://opendatacommunities.org/id/london-borough-council/sutton,London Borough of Sutton,13/04/2023,10011720,-2.45, ASDA GROCERIES ONLINE,ASDA SHOPPING REFUND,Peoples Services,Miscellaneous Expenses,A49000,
http://opendatacommunities.org/id/london-borough-council/sutton,London Borough of Sutton,04/04/2023,10011720,90.79, WWW.ARGOS.CO.UK,ITEMS NEEDED FOR WILLOW RISE CHILDREND HOME,Peoples Services,Miscellaneous Expenses,A49000,
http://opendatacommunities.org/id/london-borough-council/sutton,London Borough of Sutton,17/04/2023,10011720,25.00, WALLINGTON CARS & COUR,WALLINGTON CAB PAYMENT,Peoples Services,C.C.A Travel & Subsistance,A61010,
http://opendatacommunities.org/id/london-borough-council/sutton,London Borough of Sutton,06/04/2023,10011720,615.00, WWW.ARGOS.CO.UK,ARGOS PAYMENT - WASHING MACHINE & GAS COOKER,Peoples Services,Set Up Costs - Children Leaving Care,A61021,
http://opendatacommunities.org/id/london-borough-council/sutton,London Borough of Sutton,06/04/2023,10011720,389.00, EBAY O 17-09909-28093,EBAY - FRIDGE FREEZER PAYMENT,Peoples Services,Set Up Costs - Children Leaving Care,A61021,
http://opendatacommunities.org/id/london-borough-council/sutton,London Borough of Sutton,06/04/2023,10011720,379.99, EBAY O 17-09909-28094,EBAY - BED PAYMENT,Peoples Services,Set Up Costs - Children Leaving Care,A61021,
http://opendatacommunities.org/id/london-borough-council/sutton,London Borough of Sutton,30/03/2023,10011720,159.90, ZOOM.US 888-799-9666,SUBSCRIPTION REQUIRED FOR A TEAM,Peoples Services,Subscriptions,A47010,
http://opendatacommunities.org/id/london-borough-council/sutton,London Borough of Sutton,17/04/2023,10011720,159.90, ZOOM.US 888-799-9666,SUBSCRIPTION REQUIRED FOR TEAM,Peoples Services,Miscellaneous Expenses,A49000,
http://opendatacommunities.org/id/london-borough-council/sutton,London Borough of Sutton,04/04/2023,10011720,43.00, SEA LIFE LONDON,SEA LIFE TICKET PAYMENT,Peoples Services,Miscellaneous Expenses,A49000,
http://opendatacommunities.org/id/london-borough-council/sutton,London Borough of Sutton,14/04/2023,10011720,66.67, POST OFFICE COUNTER,PASSPORT APPLICATIONS SENT OFF,Peoples Services,Equipment And Materials Purchase,A40000,
http://opendatacommunities.org/id/london-borough-council/sutton,London Borough of Sutton,20/04/2023,10011720,60.83, GEN REGISTER OFFICE,BIRTH CERT REQUESTED BY THE SOCIAL WORKER,Peoples Services,Miscellaneous Expenses,A49000,
http://opendatacommunities.org/id/london-borough-council/sutton,London Borough of Sutton,20/04/2023,10011720,60.83, GEN REGISTER OFFICE,BIRTH CERT REQUESTED BY THE SOCIAL WORKER,Peoples Services,Miscellaneous Expenses,A49000,
http://opendatacommunities.org/id/london-borough-council/sutton,London Borough of Sutton,12/04/2023,10011720,14.00, GEN REGISTER OFFICE,BIRTH CERT,Peoples Services,Miscellaneous Expenses,A49000,
http://opendatacommunities.org/id/london-borough-council/sutton,London Borough of Sutton,13/04/2023,10011720,17.00, BARLEYLANDS,BARNEY LANDS FARM VISIT TICKET PAYMENT,Peoples Services,Miscellaneous Expenses,A49000,
http://opendatacommunities.org/id/london-borough-council/sutton,London Borough of Sutton,05/04/2023,10011720,-610.00, HOTEL AT BOOKING.COM,HOTEL STAY REQUIRED FOR SOCIAL WORKER REFUNDED AS THEY DO NOT ACCEPT COUNCIL,Peoples Services,C.C.A Travel & Subsistance,A61010,
http://opendatacommunities.org/id/london-borough-council/sutton,London Borough of Sutton,04/04/2023,10011720,508.33, HOTEL AT BOOKING.COM,HOTEL STAY REQUIRED FOR SOCIAL WORKER,Peoples Services,C.C.A Travel & Subsistance,A61010,
http://opendatacommunities.org/id/london-borough-council/sutton,London Borough of Sutton,03/04/2023,10011720,430.00, BKG BOOKING.COM HOTEL,HOTEL BOOKING,Peoples Services,Client Care/Assistance,A61011,
http://opendatacommunities.org/id/london-borough-council/sutton,London Borough of Sutton,03/04/2023,10011720,-370.00, BKG BOOKING.COM HOTEL,REFUND FOR HOTE BOOKINH,Peoples Services,Client Care/Assistance,A61011,
http://opendatacommunities.org/id/london-borough-council/sutton,London Borough of Sutton,17/04/2023,10011720,174.67, WWW.BIGYELLOW.CO.UK,STORAGE FOR A CLIENT,Peoples Services,Miscellaneous Expenses,A49000,
http://opendatacommunities.org/id/london-borough-council/sutton,London Borough of Sutton,11/04/2023,10011720,125.99, ONE4ALL,5X 25 GIFT CARDS,Peoples Services,Equipment And Materials Purchase,A40000,
http://opendatacommunities.org/id/london-borough-council/sutton,London Borough of Sutton,29/03/2023,10011720,37.50, HURAK.COM,HURAK,Peoples Services,C.C.A Travel & Subsistance,A61010,
http://opendatacommunities.org/id/london-borough-council/sutton,London Borough of Sutton,28/03/2023,10011720,103.00, WM MORRISONS STORE,"MORRISONS - ""REDACTED - PERSONAL DATA""INDUCTION LUNCH ON 28/03/23",Peoples Services,Staff Development And Training,A15022,
http://opendatacommunities.org/id/london-borough-council/sutton,London Borough of Sutton,21/04/2023,10011720,23.01, HOLLYWOOD BOWL,ACTIVITY FOR A YOUNG PERSON AND FAMILY,Peoples Services,Miscellaneous Expenses,A49000,
http://opendatacommunities.org/id/london-borough-council/sutton,London Borough of Sutton,17/04/2023,10011720,11.00, SUTTON REGISTER OFFICE,SUTTON BIRTH CERTIFICATE PAYMENT,Peoples Services,Miscellaneous Expenses,A49000,
http://opendatacommunities.org/id/london-borough-council/sutton,London Borough of Sutton,03/04/2023,10011720,61.67, WALLINGTON CARS & COUR,TAXIU NEEDED FOR CLIENT,Peoples Services,C.C.A Travel & Subsistance,A61010,
http://opendatacommunities.org/id/london-borough-council/sutton,London Borough of Sutton,05/04/2023,10011720,14.54, WWW.ARGOS.CO.UK,ITEMS NEEDED FOR CLIENT,Peoples Services,Miscellaneous Expenses,A49000,
http://opendatacommunities.org/id/london-borough-council/sutton,London Borough of Sutton,19/04/2023,10011720,43.35, FO CHATH,FLIPOUT ACTIVITY PAYMENT,Peoples Services,Miscellaneous Expenses,A49000,
http://opendatacommunities.org/id/london-borough-council/sutton,London Borough of Sutton,25/04/2023,10011720,25.00, WALLINGTON CARS & COUR,WALLINGTON CAB PAYMENT,Peoples Services,C.C.A Travel & Subsistance,A61010,
http://opendatacommunities.org/id/london-borough-council/sutton,London Borough of Sutton,30/03/2023,10011720,142.56, BKG HOTEL AT BOOKING.C,HOTEL STAY,Peoples Services,C.C.A Travel & Subsistance,A61010,
http://opendatacommunities.org/id/london-borough-council/sutton,London Borough of Sutton,30/03/2023,10011720,486.00, MBL SEMINARS,Team Learning course ],Peoples Services,Staff Development And Training,A15022,
http://opendatacommunities.org/id/london-borough-council/sutton,London Borough of Sutton,30/03/2023,10011720,7.07, FOREIGN EXCHANGE FEE,FOREIGN EXCHANGE FEE,Peoples Services,Staff Development And Training,A15022,
http://opendatacommunities.org/id/london-borough-council/sutton,London Borough of Sutton,28/03/2023,10011720,257.03, UKVI 3JLN0036239620,VISA,Peoples Services,Staff Development And Training,A15022,
http://opendatacommunities.org/id/london-borough-council/sutton,London Borough of Sutton,27/03/2023,10011720,"3,199.00", C2E848700347G UKVI,COS Application Children social servives,Peoples Services,Staff Development And Training,A15022,
http://opendatacommunities.org/id/london-borough-council/sutton,London Borough of Sutton,02/04/2023,10011720,306.82, TRAVELODGE,HOTEL EXPENSES FOR A CLIENT,Peoples Services,Miscellaneous Expenses,A49000,
http://opendatacommunities.org/id/london-borough-council/sutton,London Borough of Sutton,25/02/2022,10011720,-357.51, IMM HEALTH SURCHAR, A49000 G03840 9999  VISA AND IMMIGRATION HEALTH SURCHARGE,Peoples Services,Miscellaneous Expenses,A49000,
http://opendatacommunities.org/id/london-borough-council/sutton,London Borough of Sutton,18/04/2023,10011720,-9.83, IMM HEALTH SURCHAR, A49000 G03840 9999  VISA AND IMMIGRATION HEALTH SURCHARGE,Peoples Services,Miscellaneous Expenses,A49000,
http://opendatacommunities.org/id/london-borough-council/sutton,London Borough of Sutton,24/04/2023,10011720,16.53, VIRGIN ATLANTIC,"OVER SEAS SOCIAL WORKER FLIGHT TICKET, EXCHANGE FEE",Peoples Services,C.C.A Travel & Subsistance,A61010,
http://opendatacommunities.org/id/london-borough-council/sutton,London Borough of Sutton,21/04/2023,10011720,601.08, VIRGIN ATLANTIC,OVER SEAS SOCIAL WORKER FLIGHT TICKET,Peoples Services,C.C.A Travel & Subsistance,A61010,
http://opendatacommunities.org/id/london-borough-council/sutton,London Borough of Sutton,29/03/2023,10011720,407.10, TRAVELODGE,HOTEL BOOKING OUT OF HOURS,Peoples Services,Client Care/Assistance,A61011,
http://opendatacommunities.org/id/london-borough-council/sutton,London Borough of Sutton,03/04/2023,10011720,100.00, GREGGS,M61490,Peoples Services,Staff Development And Training,A15022,
http://opendatacommunities.org/id/london-borough-council/sutton,London Borough of Sutton,20/04/2023,10011720,822.50, PREMIER INN,HOTEL STAY REQUIRED FOR A CLIENT,Peoples Services,Client Care/Assistance,A61011,
http://opendatacommunities.org/id/london-borough-council/sutton,London Borough of Sutton,20/04/2023,10011720,"1,065.00", PREMIER INN,HOTEL REQUIRED FOR A CLIENT,Peoples Services,Client Care/Assistance,A61011,
http://opendatacommunities.org/id/london-borough-council/sutton,London Borough of Sutton,31/03/2023,10011720,98.00, VETCONSULT  THE CAT DO,BALANCING ENTRY AMOUNT (100%),Peoples Services,Equipment And Materials Purchase,A40000,
http://opendatacommunities.org/id/london-borough-council/sutton,London Borough of Sutton,02/04/2023,10011720,104.03, STORAGEMART UK #5215,STORAGE REQUIRED FOR A CLIENT,Peoples Services,Client Care/Assistance,A61011,
http://opendatacommunities.org/id/london-borough-council/sutton,London Borough of Sutton,25/04/2023,10011720,39.40, AMZNMKTPLACE,SPLIT - DISPLAYPRO 5X A3 ACRYLIC POSTER MENU HOLDER LEAN TO PERSPEX LEAFLET DISPLAY STANDS - FREE SHIPPING! (100%),Health and Wellbeing,Equipment And Materials Purchase,A40000,
http://opendatacommunities.org/id/london-borough-council/sutton,London Borough of Sutton,25/04/2023,10011720,113.00, AMZNMKTPLACE,SPLIT - SNAP PICTURE FRAME A3 POSTER PACK OF 5 ALUMINIUM PHOTO POSTER HOLDERS CLIP DISPLAY WALL NOTICE BOARD SIGNS WITH PVC COVER AND FITTING ACCESSORIES FOR HOME AND OFFICE SILVER 29.7 X 42 CM (100%),Health and Wellbeing,Equipment And Materials Purchase,A40000,
http://opendatacommunities.org/id/london-borough-council/sutton,London Borough of Sutton,05/04/2023,10011720,39.17, INTERFLORA BRITISH UNI,"GET WELL FLOWERS""REDACTED - PERSONAL DATA""",Health and Wellbeing,Hospitality,A46020,
http://opendatacommunities.org/id/london-borough-council/sutton,London Borough of Sutton,19/04/2023,10011720,69.00, WM MORRISONS STORE,STAFF TRAINING MORRISONS 69 +20 DEPOSIT 190423,Health and Wellbeing,Equipment And Materials Purchase,A40000,
http://opendatacommunities.org/id/london-borough-council/sutton,London Borough of Sutton,19/04/2023,10011720,16.42, WM MORRISONS STORE,STAFF TRAINING MORRISONS 16.42 190423,Health and Wellbeing,Equipment And Materials Purchase,A40000,
http://opendatacommunities.org/id/london-borough-council/sutton,London Borough of Sutton,18/04/2023,10011720,3.75, WILKO RETAIL LIMITED,STAFF TRAINING CUPS 4.50 180423,Health and Wellbeing,Equipment And Materials Purchase,A40000,
http://opendatacommunities.org/id/london-borough-council/sutton,London Borough of Sutton,18/04/2023,10011720,6.20, WM MORRISONS STORE,STAFF TRAINING MORRISONS 6.20 180423,Health and Wellbeing,Equipment And Materials Purchase,A40000,
http://opendatacommunities.org/id/london-borough-council/sutton,London Borough of Sutton,13/04/2023,10011720,20.00, MY.MORRISONS.COM,STAFF TRAINING MORRISONS 69 +20 DEPOSIT 190423,Health and Wellbeing,Equipment And Materials Purchase,A40000,
http://opendatacommunities.org/id/london-borough-council/sutton,London Borough of Sutton,01/04/2023,10011720,66.77, GSUITE_SUTTONCOLLEGE.A,GOOGLE CLOUD EMEA LIMITED 4692436571,Health and Wellbeing,Subscriptions,A47010,
http://opendatacommunities.org/id/london-borough-council/sutton,London Borough of Sutton,18/04/2023,10011720,12.65, AMZNMKTPLACE,SPLIT - RETAIL PACK OF 12 - BOSTIK BLU-TACK MASTIC ADHESIVE NON-TOXIC WHITE 60G REF 801127 (100%),Health and Wellbeing,Publicity,A44266,
http://opendatacommunities.org/id/london-borough-council/sutton,London Borough of Sutton,18/04/2023,10011720,13.32, AMZNMKTPLACE,SPLIT - OKSDOWN 100 PACK BLACK THICK CABLE TIES HEAVY DUTY LARGE 300MM7.6MM STRONG NYLON PLASTIC SELF LOCKING 12 INCH/30 CM EXTRA LONG ZIP TIE WRAPS (100%),Health and Wellbeing,Publicity,A44266,
http://opendatacommunities.org/id/london-borough-council/sutton,London Borough of Sutton,07/04/2023,10011720,47.99, ADOBE STOCK,ADOBE 47.99 070423,Health and Wellbeing,Publicity,A44266,
http://opendatacommunities.org/id/london-borough-council/sutton,London Borough of Sutton,03/04/2023,10011720,18.33, THE WORKS,CORONATION EVENT THE WORKS 22 030423,Health and Wellbeing,Publicity,A44266,
http://opendatacommunities.org/id/london-borough-council/sutton,London Borough of Sutton,03/04/2023,10011720,12.50, POUNDLAND LTD - 1211,POUNDLAND ORIGINAL 030423 15,Health and Wellbeing,Publicity,A44266,
http://opendatacommunities.org/id/london-borough-council/sutton,London Borough of Sutton,03/04/2023,10011720,-9.00, POUNDLAND LTD - 1211,POUNDLAND REFUND 9 030423,Health and Wellbeing,Publicity,A44266,
http://opendatacommunities.org/id/london-borough-council/sutton,London Borough of Sutton,03/04/2023,10011720,-1.00, POUNDLAND LTD - 1211,POUNDLAND REFUND 1 030423,Health and Wellbeing,Publicity,A44266,
http://opendatacommunities.org/id/london-borough-council/sutton,London Borough of Sutton,30/03/2023,10011720,93.96, MAILCHIMP,MAILCHIMP 112.75 300323,Health and Wellbeing,Publicity,A44266,
http://opendatacommunities.org/id/london-borough-council/sutton,London Borough of Sutton,27/03/2023,10011720,26.70, WM MORRISONS STORE,MARKETING KW,Health and Wellbeing,Publicity,A44266,
http://opendatacommunities.org/id/london-borough-council/sutton,London Borough of Sutton,06/04/2023,10011720,51.12, AMZNMKTPLACE,SPLIT - REFLEX SALES & MARKETING LTD. 50 X 70CM PLAIN FRAMELESS BATHROOM RECTANGLE MIRROR WITH WALL FIXINGS (100%),Health and Wellbeing,Equipment And Materials Purchase,A40000,
http://opendatacommunities.org/id/london-borough-council/sutton,London Borough of Sutton,17/04/2023,10011720,13.54, WILKO RETAIL LIMITED,WILKO 170423 FILLER AND SCREWS 16.25,Health and Wellbeing,Equipment And Materials Purchase,A40000,
http://opendatacommunities.org/id/london-borough-council/sutton,London Borough of Sutton,06/04/2023,10011720,-26.19, THOMAS RIDLEY FOODSERV,REFUND MARS BARS VENDING MACHINE,Health and Wellbeing,Vending Machines Supplies,A44041,
http://opendatacommunities.org/id/london-borough-council/sutton,London Borough of Sutton,20/04/2023,10011720,152.50, B&Q LTD,GARDENING EQUIPMENT,Health and Wellbeing,Equipment And Materials Purchase,A40000,
http://opendatacommunities.org/id/london-borough-council/sutton,London Borough of Sutton,03/04/2023,10011720,65.62, AMZNBUSINESS OY7RU1A55,STORAGE BOXES AMAZON 202-6622533-3210761,Health and Wellbeing,Equipment And Materials Purchase,A40000,
http://opendatacommunities.org/id/london-borough-council/sutton,London Borough of Sutton,14/04/2023,10011720,50.00, AMAZON.CO.UK B60NT58A5,SPLIT - AMAZON.CO.UK GIFT CARD FOR ANY AMOUNT IN A THANK YOU VERY MUCH GREETING CARD (100%),Peoples Services,LAC - Education,A44280,
http://opendatacommunities.org/id/london-borough-council/sutton,London Borough of Sutton,13/04/2023,10011720,104.92, TOPS PIZZA SUTTON,PIZZA ORDER,Peoples Services,LAC - Education,A44280,
http://opendatacommunities.org/id/london-borough-council/sutton,London Borough of Sutton,12/04/2023,10011720,224.99, AMZNBUSINESS M06DB6XZ5,"SPLIT - LENOVO IDEAPAD 3 15 INCH FULL HD LAPTOP - (INTEL CORE I3-1115G4, INTEGRATED INTEL UHD GRAPHICS, 4GB RAM, 128GB SSD, WINDOWS 11 HOME IN S MODE) - ABYSS (100%)",Peoples Services,LAC - Education,A44280,
http://opendatacommunities.org/id/london-borough-council/sutton,London Borough of Sutton,05/04/2023,10011720,150.00, AMZNMKTPLACE,"SPLIT - LENOVO IDEAPAD FLEX 3 11.6 INCH TOUCHSCREEN, AMD ATHLON SILVER 3050E 1.40 GHZ UP TO 2.80 GHZ, 4GB RAM, 64GB EMMC, WINDOWS 10 HOME IN S MODE) - ABYSS BLUE (100%)",Peoples Services,LAC - Education,A44280,
http://opendatacommunities.org/id/london-borough-council/sutton,London Borough of Sutton,04/04/2023,10011720,-4.16, AMZNMKTPLACE AMAZON.CO,"SPLIT - BIC 4 COLOURS ORIGINAL, RETRACTABLE BALLPOINT PENS, IDEAL FOR SCHOOL, MEDIUM POINT (1.0MM), MULTI-COLOURED, PACK OF 3 (100%)",Peoples Services,LAC - Education,A44280,
http://opendatacommunities.org/id/london-borough-council/sutton,London Borough of Sutton,03/04/2023,10011720,165.83, AMZNBUSINESS BY1024CT5,"SPLIT - HP CHROMEBOOK 11.6 INCH LAPTOP PC 11A-NE0000SA, MEDIATEK MT8183, 4 GB RAM, 64 GB EMMC, HD, ASH GRAY (100%)",Peoples Services,LAC - Education,A44280,
http://opendatacommunities.org/id/london-borough-council/sutton,London Borough of Sutton,28/03/2023,10011720,23.80, ROYAL MAIL GROUP LTD,ROYAL MAIL POSTAGE FOR CUBBY DELIVERY,Peoples Services,LAC - Education,A44280,
http://opendatacommunities.org/id/london-borough-council/sutton,London Borough of Sutton,20/04/2023,10011720,21.99, AMZNBUSINESS 0A3EX1TV5,SPLIT - CLARK'S POCKET HANDBOOK FOR RADIOGRAPHERS (CLARK'S COMPANION ESSENTIAL GUIDES) (100%),Peoples Services,LAC - Education,A44280,
http://opendatacommunities.org/id/london-borough-council/sutton,London Borough of Sutton,16/04/2023,10011720,119.95, AMZNMKTPLACE,"SPLIT - YUMKEM ANDROID TABLET 10 INCH, 2 IN 1 TABLETS PC IPS 1280P HD SCREEN, 8 CORE CPU, 6000MAH BATTERY, 64GB STORAGE 1TB EXPAND, 8MP CAMERA, GPS, 2.4G/5G W (100%)",Peoples Services,LAC - Education,A44280,
http://opendatacommunities.org/id/london-borough-council/sutton,London Borough of Sutton,14/04/2023,10011720,30.00, HIGH STREET VOUCHERS,SHOP VOUCHERS,Peoples Services,LAC - Education,A44280,
http://opendatacommunities.org/id/london-borough-council/sutton,London Borough of Sutton,14/04/2023,10011720,30.00, HIGH STREET VOUCHERS,SHOP VOUCHERS,Peoples Services,LAC - Education,A44280,
http://opendatacommunities.org/id/london-borough-council/sutton,London Borough of Sutton,14/04/2023,10011720,50.00, HIGH STREET VOUCHERS,SHOP VOUCHERS,Peoples Services,LAC - Education,A44280,
http://opendatacommunities.org/id/london-borough-council/sutton,London Borough of Sutton,14/04/2023,10011720,50.00, AMAZON.CO.UK LK70567U5,SPLIT - AMAZON.CO.UK GIFT CARD FOR ANY AMOUNT IN A THANK YOU VERY MUCH GREETING CARD (100%),Peoples Services,LAC - Education,A44280,
http://opendatacommunities.org/id/london-borough-council/sutton,London Borough of Sutton,14/04/2023,10011720,50.00, AMAZON.CO.UK OQ67Z5EZ5,SPLIT - AMAZON.CO.UK GIFT CARD FOR ANY AMOUNT IN A THANK YOU VERY MUCH GREETING CARD (100%),Peoples Services,LAC - Education,A44280,
http://opendatacommunities.org/id/london-borough-council/sutton,London Borough of Sutton,14/04/2023,10011720,50.00, AMAZON.CO.UK 4F52C85G5,SPLIT - AMAZON.CO.UK GIFT CARD FOR ANY AMOUNT IN A THANK YOU VERY MUCH GREETING CARD (100%),Peoples Services,LAC - Education,A44280,
http://opendatacommunities.org/id/london-borough-council/sutton,London Borough of Sutton,14/04/2023,10011720,50.00, AMAZON.CO.UK WY3DS5VH5,SPLIT - AMAZON.CO.UK GIFT CARD FOR ANY AMOUNT IN A THANK YOU VERY MUCH GREETING CARD (100%),Peoples Services,LAC - Education,A44280,
